Workbook

Sheet ORÇAMENTO
A3: TODOS OS VALORES ESTÃO NA UNIDADE MONETÁRIA REAL
A4: ITEM | B4: SERVIÇO | C4: UN | D4: QUANTI. | E4: VALOR UNI. | F4: VALOR TOTAL | G4: CÓDIGO
A5: 1 | B5: SERVIÇOS INICIAIS | E5: ∑ | F5: =SUBTOTAL(9,F6:F10) -> 14261.96
A6: 1.1 | B6: Execução de Depósito em Canteiro de Obra em Chapa de Madeira Compensada | C6: m2 | D6: 6 | E6: 476.83 | F6: =ROUND((D6*E6),2) -> 2860.98 | G6: CRD001
A7: 1.2 | B7: Execução de Área Aberta para Refeitório em Canteiro De Obra em Madeira Compensada (Incluso Banco e Mesa de Madeira) | C7: m2 | D7: 15 | E7: 234.97 | F7: =ROUND((D7*E7),2) -> 3524.55 | G7: CRD101
A8: 1.3 | B8: Execução de Sanitário e Vestiário em Canteiro de Obra em Chapa de Madeira Compensada (Incluso Lavatório, Mictório, Vaso Sanitário e Chuveiro) | C8: m2 | D8: 7 | E8: 564.31 | F8: =ROUND((D8*E8),2) -> 3950.17 | G8: CRD100
A9: 1.5 | B9: Placa de Obra em Chapa de Aço Galvanizado | C9: m2 | D9: 2.5 | E9: 386.12 | F9: =ROUND((D9*E9),2) -> 965.3 | G9: 74209/1
A10: 1.6 | B10: Locação de obra convencional, através de gabarito de madeira | C10: m | D10: 53.66 | E10: 55.18 | F10: 2960.96 | G10: 99059
A11: 2 | B11: INFRAESTRUTURA | E11: ∑ | F11: =SUBTOTAL(9,F12:F17) -> 22450.8
A12: 2.1 | B12: Escavações manuais | C12: m3 | D12: 20.8 | E12: 79.2 | F12: =ROUND((D12*E12),2) -> 1647.36 | G12: 93358
A13: 2.2 | B13: Armadura CA-50 (fornecimento, corte, dobra e colocação) | C13: kg | D13: 625.5 | E13: 10.28 | F13: =ROUND((D13*E13),2) -> 6430.14 | G13: 96546
A14: 2.3 | B14: Armadura CA-60 (fornecimento, corte, dobra e colocação) | C14: kg | D14: 110.1 | E14: 15.64 | F14: =ROUND((D14*E14),2) -> 1721.96 | G14: 96543
A15: 2.4 | B15: Formas de madeira com travamento para concreto | C15: m2 | D15: 105.56 | E15: 62.82 | F15: =ROUND((D15*E15),2) -> 6631.28 | G15: CRD102
A16: 2.5 | B16: Concreto Usinado (fornecimento, lançamento, adensamento e bombeado) FCK=25MPA | C16: m3 | D16: 10.18 | E16: 447.55 | F16: 4556.06 | G16: 96557
A17: 2.6 | B17: Impermeabilização com manta asfáltica espessura 4mm, incluindo emulsão asfáltica | C17: m2 | D17: 19.2 | E17: 76.25 | F17: 1464 | G17: 98546
A18: 3 | B18: SUPRAESTRUTURA | E18: ∑ | F18: =SUBTOTAL(9,F19:F24) -> 30436.9
A19: 3.1 | B19: Armadura CA-50 (fornecimento, corte, dobra e colocação) | C19: kg | D19: 665.8 | E19: 10.2 | F19: =ROUND((D19*E19),2) -> 6791.16 | G19: 92778
A20: 3.2 | B20: Armadura CA-60 (fornecimento, corte, dobra e colocação) | C20: kg | D20: 178.9 | E20: 15.78 | F20: =ROUND((D20*E20),2) -> 2823.04 | G20: 92775
A21: 3.3 | B21: Formas madeira para concreto | C21: m2 | D21: 133.95 | E21: 62.82 | F21: 8414.74 | G21: CRD102
A22: 3.4 | B22: Concreto Usinado (fornecimento, lançamento, adensamento e bombeado) FCK=25MPA | C22: m3 | D22: 7.58 | E22: 431.38 | F22: 3269.86 | G22: 92720
A23: 3.5 | B23: Laje para cobertura treliçada, SC 250kg/m2, c/ lajota, e capa de concreto de 5cm, FCK 25 MPa, com escoramento, ferragem negativa e malho pop. | C23: m2 | D23: 93.54 | E23: 91.53 | F23: =ROUND((D23*E23),2) -> 8561.72 | G23: 74202/2
A24: 3.6 | B24: Laje para cobertura, treliçada, SC 500kg/m2, c/ lajota, e capa de concreto de 5cm, FCK 25 MPa, com escoramento, ferragem negativa e malho pop. | C24: m2 | D24: 4.18 | E24: 137.89 | F24: 576.38 | G24: 74141/4
A25: 4 | B25: FECHAMENTOS | E25: ∑ | F25: =SUBTOTAL(9,F26:F27) -> 12910.32
A26: 4.1 | B26: Alvenaria de tijolos cerâmicos furados com espessura de 14cm (17cm acabada) | C26: m2 | D26: 192.81 | E26: 62.36 | F26: =ROUND((D26*E26),2) -> 12023.63 | G26: 87480
A27: 4.2 | B27: Vergas e contra-vergas | C27: m | D27: 14.93 | E27: 59.39 | F27: 886.69 | G27: 93188
A28: 5 | B28: COBERTURA | E28: ∑ | F28: =SUBTOTAL(9,F29:F35) -> 13314.85
A29: 5.1 | B29: Estrutura
A30: 5.1.1 | B30: Estrutura madeira aparelhada para telha em fibrocimento ou cerâmica, apoiada em laje ou parede. | C30: m2 | D30: 98 | E30: 25.11 | F30: =ROUND((D30*E30),2) -> 2460.78 | G30: 92566
A31: 5.1.2 | B31: Trama em madeira aparelhada (terças) | C31: m2 | D31: 98 | E31: 24.42 | F31: =ROUND((D31*E31),2) -> 2393.16 | G31: 92543
A32: 5.2 | B32: Telha Fibrocimento Ondulada 6mm, fornecimento e instalação | C32: m2 | D32: 62.57 | E32: 41.79 | F32: =ROUND((D32*E32),2) -> 2614.8 | G32: 94210
A33: 5.3 | B33: Telha metálica aluzinc, trapezoidal (TP 40), espessura de 0,5mm, incluindo acessórios | C33: m2 | D33: 18.55 | E33: 49.38 | F33: 916 | G33: 94213
A34: 5.4 | B34: Calhas em chapa em Aluzinco 0,5mm, desenvolvimento 33cm | C34: m | D34: 30.17 | E34: 52.99 | F34: =ROUND((D34*E34),2) -> 1598.71 | G34: 94227
A35: 5.5 | B35: Rufos em chapa em Aluzinco 0,5mm, desenvolvimento 25cm | C35: m | D35: 74.13 | E35: 44.94 | F35: =ROUND((D35*E35),2) -> 3331.4 | G35: 94231
A36: 6 | B36: REVESTIMENTOS | E36: ∑ | F36: =SUBTOTAL(9,F37:F40) -> 17651.97
A37: 6.1 | B37: Chapisco | C37: m2 | D37: 500.33 | E37: 3.87 | F37: =ROUND((D37*E37),2) -> 1936.28 | G37: 87879
A38: 6.2 | B38: Reboco | C38: m2 | D38: 500.33 | E38: 23.61 | F38: 11812.79 | G38: 87548
A39: 6.3 | B39: Azulejos 30x30 | C39: m2 | D39: 39.92 | E39: 62.11 | F39: 2479.43 | G39: 87269
A40: 6.4 | B40: Soleira de granito, para portas, janelas e guia de balizamento, espessura 2cm, nas janelas com acabamento com pingadeira (fornecimento e instalação) | C40: m | D40: 16.13 | E40: 88.25 | F40: 1423.47 | G40: 98689
A41: 7 | B41: PISO | E41: ∑ | F41: =SUBTOTAL(9,F42:F50) -> 12438.42
A42: 7.1 | B42: Regularização e compactação de subleito até 20cm de espessura | C42: m2 | D42: 88.78 | E42: 1.52 | F42: =ROUND((D42*E42),2) -> 134.95 | G42: 72961
A43: 7.2 | B43: Lastro de brita graduada - para contrapiso (e = 8cm) | C43: m3 | D43: 7.1 | E43: 98.99 | F43: 702.83 | G43: 88549
A44: 7.3 | B44: Lona 200 micras (fornecimento e instalação) | C44: m2 | D44: 88.78 | E44: 6.02 | F44: 534.46 | G44: 68053
A45: 7.4 | B45: Tela Q-92 (CA-60) (Fornecimento e instalação) (1,48 kg/m2) | C45: kg | D45: 131.39 | E45: 9.14 | F45: =ROUND((D45*E45),2) -> 1200.9 | G45: CED008
A46: 7.5 | B46: Regularização (e=3cm) de contrapiso | C46: m2 | D46: 88.78 | E46: 39.02 | F46: 3464.2 | G46: 87630
A47: 7.6 | B47: Contrapiso em concreto 25Mpa (e=7cm) | C47: m3 | D47: 6.21 | E47: 377.56 | F47: 2344.65 | G47: CED100
A48: 7.7 | B48: Piso cerâmico 30x30 (ou próximo a esta medida), PEI 5, aplicado com argamassa. | C48: m2 | D48: 67.35 | E48: 43.14 | F48: 2905.48 | G48: 87247
A49: 7.8 | B49: Piso cerâmico ANTIDERRAPANTE, 30x30 (ou próximo a esta medida), PEI 5, aplicado com argamassa | C49: m2 | D49: 21.43 | E49: 43.14 | F49: 924.49 | G49: 87247
A50: 7.9 | B50: Rodapé cerâmico de 7cm, colado com argamassa. | C50: m | D50: 38.58 | E50: 5.87 | F50: 226.46 | G50: 88648
A51: 8 | B51: INSTALAÇÕES ELÉTRICAS | E51: ∑ | F51: =SUBTOTAL(9,F52:F78) -> 14385.03
A52: 8.1 | B52: Ramal de Ligação
A53: 8.1.1 | B53: Kit Postinho 50A Monofásico, Completo - Poste de Concreto H=8,0m Resistência de 100daN (fornecimento e instalação) | C53: un | D53: 1 | E53: 1744.93 | F53: =ROUND((D53*E53),2) -> 1744.93 | G53: MEL105
A54: 8.1.2 | B54: Cabo de Alumínio Multiplexado 10mm2 - 1F+Neutro (fornecimento e instalação) | C54: m | D54: 5 | E54: 7.91 | F54: 39.55 | G54: CEL100
A55: 8.1.3 | B55: Terminal para Cabo de Cobre 10mm2 (fornecimento e instalação) | C55: un | D55: 2 | E55: 30.38 | F55: 60.76 | G55: 72263
A56: 8.2 | B56: Ramal de Carga (do Medidor de Energia até Quadro de Disjuntor)
A57: 8.2.1 | B57: Cabo de Cobre Isolado 10mm2 - 1KV (1F+N) | C57: m | D57: 50 | E57: 7.42 | F57: 371 | G57: 92980
A58: 8.2.2 | B58: Terminal para Cabo de Cobre 10mm2 (fornecimento e instalação) | C58: un | D58: 2 | E58: 30.38 | F58: 60.76 | G58: 72263
A59: 8.2.3 | B59: Eletroduto PEAD 1 1/2" (fornecimento, escavação, assentamento e reaterro) | C59: m | D59: 20 | E59: 31.02 | F59: 620.4 | G59: CEL006
A60: 8.2.4 | B60: Caixa de Passagem 30x30x40, Fundo de Brita e Tampa (fornecimento e instalação) | C60: un | D60: 2 | E60: 194.31 | F60: 388.62 | G60: 83446
A61: 8.2.5 | B61: Haste de Aterramento 5/8" | C61: un | D61: 2 | E61: 62.99 | F61: 125.98 | G61: 96985
A62: 8.2.6 | B62: Conector tipo Grampo para Haste de Aterramento 5/8" e Cabo de Cobre Isolado de 16mm2 | C62: un | D62: 2 | E62: 14.2 | F62: 28.4 | G62: 73767/1
A63: 8.2.7 | B63: Cabo de Cobre Isolado 10mm2 - 1KV (Aterramento) | C63: m | D63: 3 | E63: 7.42 | F63: 22.26 | G63: 92980
A64: 8.3 | B64: Quadro de Distribuição
A65: 8.3.1 | B65: Quadro de disjuntores sem barramento. (fornecimento e instalação) Conforme projeto | C65: un | D65: 1 | E65: 105.4 | F65: =ROUND((D65*E65),2) -> 105.4 | G65: 84402
A66: 8.3.2 | B66: Disjuntor monopolar 10A a 30A, (fornecimento e instalação) | C66: un | D66: 5 | E66: 17.42 | F66: =ROUND((D66*E66),2) -> 87.1 | G66: 74130/1
A67: 8.3.3 | B67: Disjuntor monopolar 45A, (fornecimento e instalação) | C67: un | D67: 1 | E67: 26.22 | F67: 26.22 | G67: 74130/2
A68: 8.4 | B68: Iluminação e Tomadas
A69: 8.4.1 | B69: Ponto de tomada 2P+T (caixa, eletroduto, fios e tomada c/ placa, (fornecimento e instalação), conforme projeto | C69: un | D69: 18 | E69: 190.36 | F69: 3426.48 | G69: 93141
A70: 8.4.2 | B70: Ponto de tomada 2P+T (caixa, eletroduto, fios e tomada c/ placa, (fornecimento e instalação), conforme projeto | C70: un | D70: 1 | E70: 186.75 | F70: 186.75 | G70: CEL022
A71: 8.4.3 | B71: Ponto de luz ( caixa, eletroduto, fios, INTERRUPTORES, (fornecimento e instalação), conforme projeto | C71: un | D71: 23 | E71: 160.7 | F71: 3696.1 | G71: 93128
A72: 8.4.4 | B72: Luminária Globo vidro leitoso/ Plafonier /bocal/Lampada compacta, (fornecimento e instalação), conforme projeto | C72: un | D72: 15 | E72: 126.39 | F72: =ROUND((D72*E72),2) -> 1895.85 | G72: 97592
A73: 8.4.5 | B73: Arandela (fornecimento e instalação), conforme projeto. | C73: m | D73: 7 | E73: 98.64 | F73: =ROUND((D73*E73),2) -> 690.48 | G73: 97607
A74: 8.5 | B74: Entrada para Comunicação
A75: 8.5.1 | B75: Ponto de Comunicação SEM FIAÇÃO (caixa, eletroduto, (fornecimento e instalação), conforme projeto | C75: un | D75: 1 | E75: 117.3 | F75: 117.3 | G75: CEL001
A76: 8.5.2 | B76: Caixa de passagem 30x30x40 em alvenaria, (fornecimento e instalação), Conforme projeto. | C76: un | D76: 2 | E76: 194.31 | F76: 388.62 | G76: 83446
A77: 8.5.3 | B77: Eletroduto PEAD 1 1/2" da caixa de passagem até Q.D. (fornecimento e instalação), Conforme projeto. | C77: m | D77: 20 | E77: 7.27 | F77: =ROUND((D77*E77),2) -> 145.4 | G77: MEL005
A78: 8.5.4 | B78: Quadro de Distribuição para Comunicação 20X20X12cm (fornecimento e instalação), conforme projeto. | C78: un | D78: 1 | E78: 156.67 | F78: 156.67 | G78: 83371
A79: 9 | B79: INSTALAÇÕES HIDRÁULICAS | E79: ∑ | F79: =SUBTOTAL(9,F80:F164) -> 17182.07
A80: 9.1 | B80: Alimentação - PVC rígido soldável
A81: 9.1.1 | B81: Curva 90 soldável - 25 mm | C81: un | D81: 1 | E81: 10.73 | F81: =ROUND((D81*E81),2) -> 10.73 | G81: 89364
A82: 9.1.2 | B82: Joelho 45º soldável 25mm | C82: un | D82: 2 | E82: 9.51 | F82: 19.02 | G82: 89363
A83: 9.1.3 | B83: Tubo - 25mm | C83: m | D83: 4.85 | E83: 8.66 | F83: 42 | G83: 89402
A84: 9.2 | B84: Água fria - Aparelho
A85: 9.2.1 | B85: Torneira de Lavatório - 25 mm - 1/2" (joelho) | C85: un | D85: 2 | E85: 13.06 | F85: =ROUND((D85*E85),2) -> 26.12 | G85: 90373
A86: 9.2.2 | B86: Torneira de Pia de Cozinha - 25mm - 3/4" (joelho) | C86: un | D86: 2 | E86: 13.93 | F86: 27.86 | G86: 89366
A87: 9.2.3 | B87: Vaso Sanitário p/ Válvula de Descarga de 1 1/2" - 40mm - 1 1/2" | C87: un | D87: 2 | E87: 246.55 | F87: 493.1 | G87: 99635
A88: 9.3 | B88: Água fria - Metais
A89: 9.3.1 | B89: Registro de pressão c/ canopla cromada - 3/4'' | C89: un | D89: 4 | E89: 29.5 | F89: =ROUND((D89*E89),2) -> 118 | G89: 89351
A90: 9.3.2 | B90: Válvula de Esfera 2'' | C90: pç. | D90: 1 | E90: 110.02 | F90: 110.02 | G90: 94493
A91: 9.3.3 | B91: Válvula de descarga baixa pressão 1.1/2'' | C91: pç. | D91: 2 | E91: 246.55 | F91: 493.1 | G91: 99635
A92: 9.4 | B92: Água fria - PVC Acessórios
A93: 9.4.1 | B93: Engate flexível plástico 1/2 - 30cm PVC | C93: pç. | D93: 2 | E93: 8.56 | F93: =ROUND((D93*E93),2) -> 17.12 | G93: 86884
A94: 9.5 | B94: Água fria - PVC rígido soldável
A95: 9.5.1 | B95: Adapt sold.curto c/bolsa-rosca p registro - 60 mm - 2" | C95: un | D95: 2 | E95: 16.57 | F95: =ROUND((D95*E95),2) -> 33.14 | G95: 89610
A96: 9.5.2 | B96: Bucha de redução sold. Curta 32mm - 25mm | C96: pç. | D96: 1 | E96: 0.68 | F96: 0.68 | G96: 829
A97: 9.5.3 | B97: Curva 90 soldável - 32 mm | C97: un | D97: 1 | E97: 10.13 | F97: 10.13 | G97: 89494
A98: 9.5.4 | B98: Curva 90 soldável 50mm | C98: pç. | D98: 1 | E98: 19.3 | F98: 19.3 | G98: 89503
A99: 9.5.5 | B99: Joelho 45 soldável - 32 mm | C99: un | D99: 1 | E99: 13.41 | F99: 13.41 | G99: 89368
A100: 9.5.6 | B100: Joelho 45 soldável - 50mm | C100: pç. | D100: 1 | E100: 13.35 | F100: 13.35 | G100: 89502
A101: 9.5.7 | B101: Joelho 90º soldável 25mm | C101: pç. | D101: 8 | E101: 6.62 | F101: 26.48 | G101: 89362
A102: 9.5.8 | B102: Joelho 90º soldável 50mm | C102: pç. | D102: 2 | E102: 8.6 | F102: 17.2 | G102: 89501
A103: 9.5.9 | B103: Tubo de PVC 25mm | C103: m | D103: 14.86 | E103: 8.66 | F103: =ROUND((D103*E103),2) -> 128.69 | G103: 89402
A104: 9.5.10 | B104: Tubo de PVC 32 mm | C104: m | D104: 9.87 | E104: 13.49 | F104: 133.15 | G104: 89403
A105: 9.5.11 | B105: Tubo de PVC 40 mm | C105: m | D105: 0.8 | E105: 11.05 | F105: 8.84 | G105: 89448
A106: 9.5.12 | B106: Tubo de PVC 50mm | C106: m | D106: 9.05 | E106: 12.75 | F106: 115.39 | G106: 89449
A107: 9.5.13 | B107: Tubo de PVC 60mm | C107: m | D107: 3.5 | E107: 20.79 | F107: 72.77 | G107: 89450
A108: 9.5.14 | B108: Tê de redução 90 soldável - 32 mm - 25 mm | C108: un | D108: 1 | E108: 11.36 | F108: 11.36 | G108: 89622
A109: 9.5.15 | B109: Tê de redução 90 soldável - 50 mm - 25 mm | C109: un | D109: 1 | E109: 17.43 | F109: 17.43 | G109: 89627
A110: 9.6 | B110: Água fria - PVC soldável azul c/ bucha latão
A111: 9.6.1 | B111: Joelho 90º soldável com bucha de latão - 25 mm - 3/4" | C111: un | D111: 2 | E111: 11.36 | F111: =ROUND((D111*E111),2) -> 22.72 | G111: 89622
A112: 9.6.2 | B112: Joelho de redução 90º soldável com bucha de latão 25mm - 1/2'' | C112: pç. | D112: 2 | E112: 13.93 | F112: =ROUND((D112*E112),2) -> 27.86 | G112: 89366
A113: 9.7 | B113: Esgoto - Caixa de Passagem
A114: 9.7.1 | B114: Caixa de gordura - CG 60x60 cm | C114: un | D114: 1 | E114: 162.75 | F114: =ROUND((D114*E114),2) -> 162.75 | G114: 98103
A115: 9.7.2 | B115: Caixa de inspeção esgoto simples CE 60x60cm | C115: pç. | D115: 3 | E115: 246.28 | F115: =ROUND((D115*E115),2) -> 738.84 | G115: 74166/1
A116: 9.8 | B116: Esgoto - PVC Acessórios
A117: 9.8.1 | B117: Caixa Sifonada 150x150x50 | C117: pç. | D117: 2 | E117: 22.25 | F117: =ROUND((D117*E117),2) -> 44.5 | G117: 89482
A118: 9.8.2 | B118: Sifão de copo p/ pia e lavatório - 1'' - 1 1/2'' | C118: un | D118: 2 | E118: 22.25 | F118: =ROUND((D118*E118),2) -> 44.5 | G118: 89482
A119: 9.8.3 | B119: Sifão de copo p/ pia e lavatório - 1" - 2" | C119: un | D119: 2 | E119: 52.13 | F119: =ROUND((D119*E119),2) -> 104.26 | G119: 89491
A120: 9.8.4 | B120: Válvula p/ lavatório e tanque - 1'' | C120: un | D120: 2 | E120: 6.93 | F120: =ROUND((D120*E120),2) -> 13.86 | G120: 86879
A121: 9.8.5 | B121: Válvula p/ pia - 1'' | C121: un | D121: 2 | E121: 6.93 | F121: =ROUND((D121*E121),2) -> 13.86 | G121: 86879
A122: 9.9 | B122: Esgoto - PVC Esgoto
A123: 9.9.1 | B123: Curva 90 curta PVC 100mm | C123: pç. | D123: 2 | E123: 30.86 | F123: =ROUND((D123*E123),2) -> 61.72 | G123: 89748
A124: 9.9.2 | B124: Curva 90 curta PVC 50mm | C124: pç. | D124: 2 | E124: 14.95 | F124: 29.9 | G124: 89733
A125: 9.9.3 | B125: Curva 90 curta PVC 40mm | C125: pç. | D125: 1 | E125: 9.26 | F125: 9.26 | G125: 89728
A126: 9.9.4 | B126: Joelho 45 - 40 mm | C126: un | D126: 2 | E126: 7.08 | F126: 14.16 | G126: 89726
A127: 9.9.5 | B127: Joelho 45 - 50 mm | C127: un | D127: 1 | E127: 10.51 | F127: 10.51 | G127: 89732
A128: 9.9.6 | B128: Joelho 90 - 50mm | C128: pç. | D128: 6 | E128: 10.1 | F128: 60.6 | G128: 89731
A129: 9.9.7 | B129: Joelho 90 c/anel p/ esgoto secundário PVC 40mm - 1.1/2'' | C129: pç. | D129: 2 | E129: 10.1 | F129: 20.2 | G129: 89731
A130: 9.9.8 | B130: Junção simples - 100 mm - 50 mm | C130: un | D130: 2 | E130: 18.33 | F130: 36.66 | G130: 89785
A131: 9.9.9 | B131: Luva simples - 100mm | C131: pç. | D131: 2 | E131: 11.98 | F131: 23.96 | G131: 89821
A132: 9.9.10 | B132: Tubo rígido c/ ponta lisa - 100mm - 4'' | C132: m | D132: 19.56 | E132: 52.82 | F132: 1033.16 | G132: 89714
A133: 9.9.11 | B133: Tubo rígido c/ ponta lisa - 40mm | C133: m | D133: 2.26 | E133: 18.72 | F133: 42.31 | G133: 89711
A134: 9.9.12 | B134: Tubo rígido c/ ponta lisa - 50mm -2'' | C134: m | D134: 8.69 | E134: 26.88 | F134: 233.59 | G134: 89712
A135: 9.9.13 | B135: Tubo rígido c/ ponta lisa - 75 mm - 3" | C135: m | D135: 7.53 | E135: 40.79 | F135: 307.15 | G135: 89713
A136: 9.9.14 | B136: Tê sanitário PVC - 50mm - 50mm | C136: pç. | D136: 2 | E136: 17.16 | F136: 34.32 | G136: 89784
A137: 9.10 | B137: Pluvial - Caixa de Passagem
A138: 9.10.1 | B138: Caixa de areia pluvial sem grelha CA - 60x60cm | C138: pç. | D138: 2 | E138: 246.28 | F138: =ROUND((D138*E138),2) -> 492.56 | G138: 74166/1
A139: 9.11 | B139: Pluvial - PVC Esgoto
A140: 9.11.1 | B140: Curva 90 curta - 100mm | C140: pç. | D140: 6 | E140: 30.86 | F140: =ROUND((D140*E140),2) -> 185.16 | G140: 89748
A141: 9.11.2 | B141: Curva 90 curta - 75mm | C141: pç. | D141: 1 | E141: 33.51 | F141: =ROUND((D141*E141),2) -> 33.51 | G141: 89743
A142: 9.11.3 | B142: Junção simples - 100 mm - 75 mm | C142: pç. | D142: 1 | E142: 53.14 | F142: =ROUND((D142*E142),2) -> 53.14 | G142: 89569
A143: 9.11.4 | B143: Tubo rígido c/ ponta lisa - 100mm - 4'' | C143: m | D143: 38.86 | E143: 52.82 | F143: =ROUND((D143*E143),2) -> 2052.59 | G143: 89714
A144: 9.11.5 | B144: Tubo rígido c/ ponta lisa - 75mm - 3'' | C144: m | D144: 4.69 | E144: 40.79 | F144: =ROUND((D144*E144),2) -> 191.31 | G144: 89713
A145: 9.12 | B145: Ventilação - PVC Esgoto
A146: 9.12.1 | B146: Tubo rígido c/ ponta lisa - 50mm 2'' | C146: m | D146: 7.48 | E146: 26.88 | F146: =ROUND((D146*E146),2) -> 201.06 | G146: 89712
A147: 9.13 | B147: Componentes Sanitários
A148: 9.13.1 | B148: Caixa d'água 750L - Incluso Tampa | C148: un | D148: 1 | E148: 825.2 | F148: =ROUND((D148*E148),2) -> 825.2 | G148: CHI006
A149: 9.13.2 | B149: Vaso sanitário | C149: un | D149: 2 | E149: 196.13 | F149: =ROUND((D149*E149),2) -> 392.26 | G149: 95469
A150: 9.13.3 | B150: Torneira cromada tubo móvel de parede 1/2" ou 3/4" para pia de cozinha , padrão médio - fornecimento e instalação | C150: un | D150: 2 | E150: 115.94 | F150: =ROUND((D150*E150),2) -> 231.88 | G150: 86910
A151: 9.13.4 | B151: Tanque aço inox chapa 22/304 50x40cm - 24 L, com torneira e sifão | C151: un | D151: 1 | E151: 489.61 | F151: =ROUND((D151*E151),2) -> 489.61 | G151: 11688
A152: 9.13.5 | B152: Lavatório louça branca suspenso, 29,5 x 39cm ou equivalente, padrãopular, incluso sifão tipo garrafa em pvc, válvula e engate flexívelcm em plástico e torneira cromada de mesa, padrão popular - fornecimto e instalação. (modelo redondo) | C152: un | D152: 2 | E152: 215.75 | F152: =ROUND((D152*E152),2) -> 431.5 | G152: 86942
A153: 9.13.6 | B153: Dispenser para papel toalha | C153: un. | D153: 2 | E153: 86.44 | F153: =ROUND((D153*E153),2) -> 172.88 | G153: 37401
A154: 9.13.7 | B154: Dispenser para papel higienico | C154: un. | D154: 2 | E154: 86.44 | F154: =ROUND((D154*E154),2) -> 172.88 | G154: 37400
A155: 9.13.8 | B155: Dispenser para sabonete liquido | C155: un. | D155: 2 | E155: 83.03 | F155: =ROUND((D155*E155),2) -> 166.06 | G155: 11758
A156: 9.13.9 | B156: Espelho cristal espessura 4mm, com moldura de madeira, dimensõa 50cm x 90 cm (02 unidades) | C156: m2 | D156: 0.45 | E156: 478.6 | F156: =ROUND((D156*E156),2) -> 215.37 | G156: 74125/1
A157: 9.13.10 | B157: Placa de informação visual, em acrílico | C157: un | D157: 2 | E157: 52.69 | F157: =ROUND((D157*E157),2) -> 105.38 | G157: 10851
A158: 9.13.11 | B158: Barras de Apoio
A159: 9.13.11.1 | B159: Barra de Apoio Angular, 60cm, em Aço Inox Polido (fornecimento e instalação) | C159: un | D159: 2 | E159: 239.51 | F159: =ROUND((D159*E159),2) -> 479.02 | G159: CAC003
A160: 9.13.11.2 | B160: Barra de Apoio Reta, em Alumínio, 40cm (fornecimento e instalação) | C160: un | D160: 4 | E160: 115.81 | F160: =ROUND((D160*E160),2) -> 463.24 | G160: CAC004
A161: 9.13.11.3 | B161: Barra de Apoio Reta, em Alumínio, 70cm (fornecimento e instalação) | C161: un | D161: 2 | E161: 130.74 | F161: =ROUND((D161*E161),2) -> 261.48 | G161: CAC005
A162: 9.13.11.4 | B162: Barra de Apoio Reta, em Alumínio, 80cm (fornecimento e instalação) | C162: un | D162: 4 | E162: 140.29 | F162: =ROUND((D162*E162),2) -> 561.16 | G162: CAC006
A163: 9.14 | B163: Fossa Séptica | C163: un | D163: 1 | E163: 1919.75 | F163: =ROUND((D163*E163),2) -> 1919.75 | G163: CHI100
A164: 9.15 | B164: Filtro Anaeróbio | C164: un | D164: 1 | E164: 2016.03 | F164: =ROUND((D164*E164),2) -> 2016.03 | G164: CHI101
A165: 10 | B165: PREV. CONTRA INCÊNDIO (CIVIL) | E165: ∑ | F165: =SUBTOTAL(9,F166:F169) -> 669.14
A166: 10.1 | B166: Registro de Fecho rápido, com ponta para engate de mangueira - 1/2" | C166: un | D166: 2 | E166: 12.88 | F166: 25.76 | G166: 72676
A167: 10.2 | B167: Tubo de Cobre com costura 3/8", inclusive conexões - Fornecimento e Instalação | C167: m | D167: 1 | E167: 27.88 | F167: 27.88 | G167: 74061/1
A168: 10.3 | B168: Extintor Incêndio TP Pó Químico 4kg Fornecimento e Colocação | C168: un | D168: 2 | E168: 141.26 | F168: 565.04 | G168: 73775/1
A169: 10.4 | B169: Placa Indicativa de Lotação, 80 x 60, em acrílico | C169: un | D169: 2 | E169: 50.46 | F169: 50.46 | G169: 84121
A170: 11 | B170: ESQUADRIAS | E170: ∑ | F170: =SUBTOTAL(9,F171:F188) -> 26658.43
A171: 11.1 | B171: Porta
A172: 11.1.1 | B172: P1 - Porta - 0,90x2,10 - 1 Folha de Abrir - Madeira Compensada (02 unidades) | C172: m2 | D172: 1.89 | E172: 938.54 | F172: =ROUND((D172*E172),2) -> 1773.84 | G172: 91315
A173: 11.1.2 | B173: P2 - Porta - 0,90x2,10 - 1 Folha de Correr - Madeira Compensada (01 unidade) | C173: m2 | D173: 1.89 | E173: 938.54 | F173: 1773.84 | G173: 91315
A174: 11.2 | B174: P3 - Porta - 0,90x2,45 - 1 Folha de Abrir + Bandeira Maxim Ar - Alumínio e Vidro (01 unidade)
A175: 11.2.1 | B175: Porta de Alumínio - 1 Folha de Abrir | C175: m2 | D175: 1.89 | E175: 1338.21 | F175: =ROUND((D175*E175),2) -> 2529.22 | G175: 91338
A176: 11.2.2 | B176: Bandeira Maxim Ar Alumínio, incluso vidro | C176: m2 | D176: 0.315 | E176: 833.22 | F176: 262.46 | G176: 94581
A177: 11.3 | B177: P4 - Porta - 0,50x1,00- 1 Folha de Abrir tipo Veneziana - Alumínio (01 unidade) | C177: m2 | D177: 0.5 | E177: 1338.21 | F177: =ROUND((D177*E177),2) -> 669.11 | G177: 91338
A178: 11.4 | B178: P4 - Porta - 1,60X1,60- 2 Folhas de Abrir tipo Veneziana - Alumínio (01 unidade) | C178: m2 | D178: 2.56 | E178: 1338.21 | F178: =ROUND((D178*E178),2) -> 3425.82 | G178: 91338
A179: 11.4 | B179: Janela
A180: 11.4.1 | B180: J1 - Janela - 0,60x0,60 - Maxim Ar -Alumínio e Vidro (Incluso Vidro) (2 Unidades) | C180: m2 | D180: 0.72 | E180: 833.22 | F180: 599.92 | G180: 94581
A181: 11.4.2 | B181: J2 - Janela - 0,60x2,45 - Vidro Fixo e Maxim Ar - Alumínio e Vidro (Incluso Vidro) (2 Unidades) | C181: m2 | D181: 2.94 | E181: 833.22 | F181: =ROUND((D181*E181),2) -> 2449.67 | G181: 94581
A182: 11.4.3 | B182: J3 - Janela - 1,00x1,45 - Vidro Fixo e Maxim Ar -Alumínio e Vidro (Incluso Vidro) (2 Unidades) | C182: m2 | D182: 2.9 | E182: 833.22 | F182: =ROUND((D182*E182),2) -> 2416.34 | G182: 94581
A183: 11.4.4 | B183: J4 - Janela - 3,00x2,85 - Vidro Fixo e Maxim Ar -Alumínio e Vidro (Incluso Vidro) (1 Unidade) | C183: m2 | D183: 8.55 | E183: 833.22 | F183: =ROUND((D183*E183),2) -> 7124.03 | G183: 94581
A184: 11.4.5 | B184: PJ1 - Janela - 2,43x2,85 - 1 Folha de Correr - Alumínio e Vidro - (1 Unidade) | C184: m2 | D184: 6.9255 | E184: 515.27 | F184: =ROUND((D184*E184),2) -> 3568.5 | G184: 94582
A185: 11.4.6 | B185: V1 - Janela - 0,20x0,10 - Veneziana -Alumínio (1 Unidade) | C185: m2 | D185: 0.02 | E185: 820.77 | F185: =ROUND((D185*E185),2) -> 16.42 | G185: 4917
A186: 11.4.7 | B186: V2 - Janela - 0,20x0,10 - Veneziana -Alumínio (1 Unidade) | C186: m2 | D186: 0.02 | E186: 820.77 | F186: =ROUND((D186*E186),2) -> 16.42 | G186: 4917
A187: 11.4.8 | B187: V3 - Janela - 0,20x0,10 - Veneziana -Alumínio (1 Unidade) | C187: m2 | D187: 0.02 | E187: 820.77 | F187: =ROUND((D187*E187),2) -> 16.42 | G187: 4917
A188: 11.4.9 | B188: V4 - Janela - 0,20x0,10 - Veneziana -Alumínio (1 Unidade) | C188: m2 | D188: 0.02 | E188: 820.77 | F188: =ROUND((D188*E188),2) -> 16.42 | G188: 4917
A189: 12 | B189: COMPLEMENTAÇÕES | E189: ∑ | F189: =SUBTOTAL(9,F190:F191) -> 1043.74
A190: 12.1 | B190: Guarda Corpo com corrimão em tubo de aço galvanizado 1 1/2" | C190: m | D190: 3.7 | E190: 259.7 | F190: =ROUND((D190*E190),2) -> 960.89 | G190: 84862
A191: 12.2 | B191: Granito para detalhe de Guarda Corpo | C191: m2 | D191: 0.25 | E191: 331.4 | F191: 82.85 | G191: 98671
A192: 13 | B192: PINTURA | E192: ∑ | F192: =SUBTOTAL(9,F193:F198) -> 9298.31
A193: 13.1 | B193: Fundo preparador para pintura acrílica, um demão | C193: m2 | D193: 460.41 | E193: 2.93 | F193: =ROUND((D193*E193),2) -> 1349 | G193: 88415
A194: 13.2 | B194: Pintura acrílica (2 demãos) | C194: m2 | D194: 460.41 | E194: 14.29 | F194: =ROUND((D194*E194),2) -> 6579.26 | G194: 88489
A195: 13.3 | B195: Pintura esmalte brilhante para madeira (esquadrias), duas demãos, incluso aparelhamento com fundo nivelador branco fosco. | C195: m2 | D195: 11.34 | E195: 29.29 | F195: =ROUND((D195*E195),2) -> 332.15 | G195: 74065/3
A196: 13.4 | B196: Tratamento estrutura metálica - da superfície com jato de areia | C196: m2 | D196: 20.24 | E196: 18.89 | F196: 382.33 | G196: 73656
A197: 13.5 | B197: Tratamento estrutura metálica - da superfície com uma demão de prime epóxi, espesura e= 25µ | C197: m2 | D197: 20.24 | E197: 10.67 | F197: 215.96 | G197: 73865/1
A198: 13.6 | B198: Pintura superfície metálica em duas demãos de esmalte epóxi, espessura 125 μ; | C198: m2 | D198: 20.24 | E198: 21.72 | F198: 439.61 | G198: 74145/1
A199: 14 | B199: ACESSIBILIDADE | E199: ∑ | F199: =SUBTOTAL(9,F200:F209) -> 6786.7
A200: 14.1 | B200: Placa Tátil Braille para Sinalização de Ambientes de Acrílico com Nome do Ambiente, 20x12cm | C200: UN | D200: 6 | E200: 55.89 | F200: =ROUND((D200*E200),2) -> 335.34 | G200: CAC012
A201: 14.2 | B201: Podotátil Direcional ou Alerta de PVC Colorido, 25x25cm, Colado, e=5cm (fornecimento e assentamento) | C201: M2 | D201: 3.1 | E201: 188.9 | F201: =ROUND((D201*E201),2) -> 585.59 | G201: CED109
A202: 14.3 | B202: Vaga Acessível
... 8 more rows

Sheet CRONOGRAMA
A2: CRONOGRAMA FÍSICO FINANCEIRO
B4: VALORES EM REAIS
A5: ITEM | B5: DESCRIÇÃO | C5: TOTAL | D5: % | E5: 1º MÊS | F5: % | G5: 2º MÊS | H5: % | I5: 3º MÊS | J5: % | K5: 4º MÊS | L5: % | M5: 5º MÊS | N5: %
A7: 1 | B7: =ORÇAMENTO!B5 -> SERVIÇOS INICIAIS | C7: =ORÇAMENTO!F5 -> 14261.96 | D7: =C7*100/$C$22 -> 7.149259226 | E7: =$C$7*F7/100 -> 14261.96 | F7: 100 | G7: =$C$7*H7/100 -> 0 | I7: =$C$7*J7/100 -> 0 | K7: =$C$7*L7/100 -> 0 | M7: =$C$7*N7/100 -> 0
A8: 2 | B8: =ORÇAMENTO!B11 -> INFRAESTRUTURA | C8: =ORÇAMENTO!F11 -> 22450.8 | D8: 11.25417467 | E8: =$C$8*F8/100 -> 11225.4 | F8: 50 | G8: =$C$8*H8/100 -> 11225.4 | H8: 50 | I8: =$C$8*J8/100 -> 0 | K8: =$C$8*L8/100 -> 0 | M8: =$C$8*N8/100 -> 0
A9: 3 | B9: =ORÇAMENTO!B18 -> SUPRAESTRUTURA | C9: =ORÇAMENTO!F18 -> 30436.9 | D9: 15.25746027 | E9: =$C$9*F9/100 -> 15218.45 | F9: 50 | G9: =$C$9*H9/100 -> 15218.45 | H9: 50 | I9: =$C$9*J9/100 -> 0 | K9: =$C$9*L9/100 -> 0 | M9: =$C$9*N9/100 -> 0
A10: 4 | B10: =ORÇAMENTO!B25 -> FECHAMENTOS | C10: =ORÇAMENTO!F25 -> 12910.32 | D10: 6.47170686 | E10: =$C$10*F10/100 -> 0 | G10: =$C$10*H10/100 -> 6455.16 | H10: 50 | I10: =$C$10*J10/100 -> 6455.16 | J10: 50 | K10: =$C$10*L10/100 -> 0 | M10: =$C$10*N10/100 -> 0
A11: 5 | B11: =ORÇAMENTO!B28 -> COBERTURA | C11: =ORÇAMENTO!F28 -> 13314.85 | D11: 6.674490337 | E11: =$C$11*F11/100 -> 0 | G11: =$C$11*H11/100 -> 0 | I11: =$C$11*J11/100 -> 6657.425 | J11: 50 | K11: =$C$11*L11/100 -> 6657.425 | L11: 50 | M11: =$C$11*N11/100 -> 0
A12: 6 | B12: =ORÇAMENTO!B36 -> REVESTIMENTOS | C12: =ORÇAMENTO!F36 -> 17651.97 | D12: 8.848609124 | E12: =$C$12*F12/100 -> 0 | G12: =$C$12*H12/100 -> 0 | I12: =$C$12*J12/100 -> 8825.985 | J12: 50 | K12: =$C$12*L12/100 -> 8825.985 | L12: 50 | M12: =$C$12*N12/100 -> 0
A13: 7 | B13: =ORÇAMENTO!B41 -> PISO | C13: =ORÇAMENTO!F41 -> 12438.42 | D13: 6.235152037 | E13: =$C$13*F13/100 -> 0 | G13: =$C$13*H13/100 -> 0 | I13: =$C$13*J13/100 -> 0 | K13: =$C$13*L13/100 -> 6219.21 | L13: 50 | M13: =$C$13*N13/100 -> 6219.21 | N13: 50
A14: 8 | B14: =ORÇAMENTO!B51 -> INSTALAÇÕES ELÉTRICAS | C14: =ORÇAMENTO!F51 -> 14385.03 | D14: 7.210951962 | E14: =$C$14*F14/100 -> 2157.7545 | F14: 15 | G14: =$C$14*H14/100 -> 2157.7545 | H14: 15 | I14: =$C$14*J14/100 -> 5034.7605 | J14: 35 | K14: =$C$14*L14/100 -> 2877.006 | L14: 20 | M14: =$C$14*N14/100 -> 2157.7545 | N14: 15
A15: 9 | B15: =ORÇAMENTO!B79 -> INSTALAÇÕES HIDRÁULICAS | C15: =ORÇAMENTO!F79 -> 17182.07 | D15: 8.613056864 | E15: =$C$15*F15/100 -> 2577.3105 | F15: 15 | G15: =$C$15*H15/100 -> 2577.3105 | H15: 15 | I15: =$C$15*J15/100 -> 6013.7245 | J15: 35 | K15: =$C$15*L15/100 -> 3436.414 | L15: 20 | M15: =$C$15*N15/100 -> 2577.3105 | N15: 15
A16: 10 | B16: =ORÇAMENTO!B165 -> PREV. CONTRA INCÊNDIO (CIVIL) | C16: =ORÇAMENTO!F165 -> 669.14 | D16: 0.3354276213 | E16: =$C$16*F16/100 -> 100.371 | F16: 15 | G16: =$C$16*H16/100 -> 100.371 | H16: 15 | I16: =$C$16*J16/100 -> 234.199 | J16: 35 | K16: =$C$16*L16/100 -> 133.828 | L16: 20 | M16: =$C$16*N16/100 -> 100.371 | N16: 15
A17: 11 | B17: =ORÇAMENTO!B170 -> ESQUADRIAS | C17: =ORÇAMENTO!F170 -> 26658.43 | D17: 13.3633825 | E17: =$C$17*F17/100 -> 0 | G17: =$C$17*H17/100 -> 0 | I17: =$C$17*J17/100 -> 0 | K17: =$C$17*L17/100 -> 13329.215 | L17: 50 | M17: =$C$17*N17/100 -> 13329.215 | N17: 50
A18: 12 | B18: =ORÇAMENTO!B189 -> COMPLEMENTAÇÕES | C18: =ORÇAMENTO!F189 -> 1043.74 | D18: 0.5232077375 | E18: =$C$18*F18/100 -> 0 | G18: =$C$18*H18/100 -> 0 | I18: =$C$18*J18/100 -> 0 | K18: =$C$18*L18/100 -> 0 | M18: =$C$18*N18/100 -> 1043.74 | N18: 100
A19: 13 | B19: =ORÇAMENTO!B192 -> PINTURA | C19: =ORÇAMENTO!F192 -> 9298.31 | D19: 4.66107243 | E19: =$C$19*F19/100 -> 0 | G19: =$C$19*H19/100 -> 0 | I19: =$C$19*J19/100 -> 0 | K19: =$C$19*L19/100 -> 0 | M19: =$C$19*N19/100 -> 9298.31 | N19: 100
A20: 14 | B20: =ORÇAMENTO!B199 -> ACESSIBILIDADE | C20: =ORÇAMENTO!F199 -> 6786.7 | D20: 3.402048357 | E20: =$C$19*F20/100 -> 0 | G20: =$C$19*H20/100 -> 0 | I20: =$C$19*J20/100 -> 0 | K20: =$C$19*L20/100 -> 0 | M20: =$C$20*N20/100 -> 6786.7 | N20: 100
B22: SUBTOTAL | C22: =SUM(C7:C20) -> 199488.64 | D22: =SUM(D7:D20) -> 100 | E22: =SUM(E7:E21) -> 45541.246 | F22: =E22*100/$C$22 -> 22.82899217 | G22: =SUM(G7:G21) -> 37734.446 | H22: =G22*100/$C$22 -> 18.91558637 | I22: =SUM(I7:I21) -> 33221.254 | J22: =I22*100/$C$22 -> 16.65320592 | K22: =SUM(K7:K21) -> 41479.083 | L22: =K22*100/$C$22 -> 20.79270429 | M22: =SUM(M7:M21) -> 41512.611 | N22: =M22*100/$C$22 -> 20.80951126
B23: TOTAL ACUMULADO | E23: =E22 -> 45541.246 | F23: =F22 -> 22.82899217 | G23: =E23+G22 -> 83275.692 | H23: 41.74457854 | I23: 116496.946 | J23: 58.39778446 | K23: 157976.029 | L23: 79.19048874 | M23: 199488.64 | N23: 100

Sheet BDI 20,34%
B2: COMPOSIÇÃO DE BDI
B5: O valor do BDI é obtido pela fórmula e taxas abaixo
B9: FÓRMULA BDI
B12: BDI = | C12: (1+AC+S+R+G)(1+DF)(1+L) | D12: -1
C13: _______________________________________
C14: (1-I)
B17: ONDE:
B18: AC = Taxa de Administração Central | E18: 0.03
B19: S = Taxa de Seguros | E19: 0.004
B20: G = Taxa de Garantias | E20: 0.004
B21: R = Taxa de Riscos | E21: 0.0097
B22: DF = Taxa de Despesas Financeiras | E22: 0.0059
B23: L = Taxa de Lucro / Remuneração | E23: 0.0717
B24: I = Taxa de Incidência de Impostos (EMPRESA DESONERADA) | E24: =D27 -> 0.0615
C25: I1: PIS e COFINS | D25: 0.0365
C26: I2: ISSQN (conforme legislação municipal) | D26: 0.025
C27: ∑ | D27: =SUM(D25:D26) -> 0.0615
B29: TEMOS ENTÃO ENTRANDO COM OS DADOS NA FÓRMULA
B31: BDI = | C31: =TRUNC(((((1+E18+E19+E20+E21)*(1+E22)*(1+E23))/(1-E24))-1),4) -> 0.2034
